fUSD/lending_fUSD_20250213
["ID","MTS","AMOUNT","RATE_DAILY","PERIOD"]
[352954916,1739459454153,-500.0,0.00014183,2]
[352954917,1739459454163,-1015.32,0.00014183,2]
[352954919,1739459454172,-500.0,0.00014183,2]
[352954921,1739459454182,-500.0,0.00014183,2]
[352954923,1739459454191,-193.68416866,0.00014183,2]
[352954925,1739459454201,-500.0,0.00014183,2]
[352954927,1739459454210,-820.75,0.00014183,2]
[352954929,1739459454220,-1132.42,0.00014183,2]
[352954931,1739459454229,-500.0,0.00014183,2]
[352954933,1739459454239,-500.0,0.00014183,2]
[352954935,1739459454249,-500.0,0.00014183,2]
[352954937,1739459454263,-630.05,0.00014183,2]
[352954940,1739459454273,-1139.9,0.00014183,2]
[352954941,1739459454283,-500.0,0.00014183,2]
[352954944,1739459454293,-901.3,0.00014183,2]
[352954945,1739459454303,-500.0,0.00014183,2]
[352954947,1739459454312,-1331.1,0.00014183,2]
[352954949,1739459454322,-532.36655077,0.00014183,2]
[352954951,1739459454333,-500.0,0.00014183,2]
[352954953,1739459454343,-542.42,0.00014183,2]
[352954955,1739459454352,-693.28,0.00014183,2]
[352954957,1739459454361,-1261.97,0.00014183,2]
[352954959,1739459454371,-500.0,0.00014196,2]
[352954961,1739459454381,-500.0,0.00014196,2]
[352954963,1739459454391,-1030.12,0.00014196,2]
[352954965,1739459454400,-500.0,0.00014196,2]
[352954967,1739459454410,-500.0,0.00014196,2]
[352954969,1739459454421,-500.0,0.00014196,2]
[352954971,1739459454430,-1058.08,0.00014196,2]
[352954973,1739459454440,-500.0,0.00014196,2]
[352954975,1739459454451,-500.0,0.00014196,2]
[352954977,1739459454460,-900.96,0.00014196,2]
[352954979,1739459454470,-639.83,0.00014196,2]
[352954981,1739459454479,-500.0,0.00014196,2]
[352954983,1739459454489,-714.0,0.00014196,2]
[352954985,1739459454498,-683.24,0.00014196,2]
[352954987,1739459454507,-556.12,0.00014196,2]
[352954989,1739459454517,-1125.89,0.00014196,2]
[352954991,1739459454526,-875.46,0.00014196,2]
[352954993,1739459454536,-938.44,0.00014196,2]
[352954995,1739459454546,-1204.44,0.00014196,2]
[352954997,1739459454556,-500.0,0.00014196,2]
[352954999,1739459454566,-500.0,0.00014196,2]
[352955001,1739459454575,-500.0,0.00014196,2]
[352955003,1739459454585,-837.96,0.00014196,2]
[352955005,1739459454594,-523.2,0.00014196,2]
[352955006,1739459454604,-704.1,0.00014196,2]
[352955008,1739459454613,-1013.41,0.00014196,2]
[352955010,1739459454623,-500.0,0.00014196,2]
[352955012,1739459454633,-500.0,0.00014196,2]
[352955014,1739459454643,-699.23,0.00014196,2]
[352955016,1739459454652,-987.0,0.00014196,2]
[352955018,1739459454663,-785.65,0.00014196,2]
[352955020,1739459454672,-500.0,0.00014196,2]
[352955022,1739459454681,-500.0,0.00014196,2]
[352955024,1739459454691,-549.49,0.00014196,2]
[352955026,1739459454700,-500.0,0.00014196,2]
[352955028,1739459454710,-811.31,0.00014196,2]
[352955030,1739459454719,-500.0,0.00014196,2]
[352955032,1739459454728,-500.0,0.00014196,2]
[352955034,1739459454738,-419.59691155,0.00014196,2]
[352955036,1739459454747,-500.0,0.00014196,2]
[352955038,1739459454756,-818.39,0.00014196,2]
[352955040,1739459454766,-500.0,0.00014196,2]
[352955042,1739459454776,-500.0,0.00014196,2]
[352955044,1739459454785,-1214.12,0.00014196,2]
[352955046,1739459454795,-577.86,0.00014196,2]
[352955048,1739459454804,-1413.67,0.00014196,2]
[352955050,1739459454814,-829.86,0.00014196,2]
[352955052,1739459454823,-500.0,0.00014196,2]
[352955054,1739459454833,-500.0,0.00014196,2]
[352955056,1739459454842,-595.45,0.00014196,2]
[352955058,1739459454851,-519.99,0.00014196,2]
[352955060,1739459454861,-500.0,0.00014196,2]
[352955062,1739459454871,-886.97,0.00014196,2]
[352955064,1739459454882,-671.02,0.00014196,2]
[352955066,1739459454892,-932.88,0.00014196,2]
[352955068,1739459454901,-629.55,0.00014196,2]
[352955070,1739459454911,-1291.8,0.00014196,2]
[352955072,1739459454921,-194.62,0.00014196,2]
[352955074,1739459454930,-682.4,0.00014196,2]
[352955076,1739459454940,-500.0,0.00014196,2]
[352955078,1739459454949,-912.58,0.00014196,2]
[352955080,1739459454959,-500.0,0.00014196,2]
[352955082,1739459454968,-1422.31,0.00014196,2]
[352955084,1739459454978,-798.31,0.00014196,2]
[352955086,1739459454987,-500.0,0.00014196,2]
[352955088,1739459454996,-1047.73,0.00014196,2]
[352955090,1739459455006,-500.0,0.00014196,2]
[352955092,1739459455016,-500.0,0.00014196,2]
[352955094,1739459455025,-962.75,0.00014196,2]
[352955096,1739459455035,-500.0,0.00014196,2]
[352955098,1739459455044,-604.64595246,0.00014196,2]
[352955099,1739459455054,-500.0,0.00014196,2]
[352955101,1739459455065,-500.0,0.00014196,2]
[352955103,1739459455075,-667.5,0.00014196,2]
[352955105,1739459455086,-740.77,0.00014196,2]
[352955107,1739459455095,-921.94,0.00014196,2]
[352955110,1739459455105,-717.13,0.00014196,2]
[352955111,1739459455115,-500.0,0.00014196,2]
[352955113,1739459455126,-439.92568145,0.00014196,2]
[352955115,1739459455136,-565.28,0.00014196,2]
[352955117,1739459455146,-1335.12,0.00014196,2]
[352955120,1739459455156,-546.02,0.00014196,2]
[352955122,1739459455166,-1057.4,0.00014196,2]
[352955123,1739459455176,-500.0,0.00014196,2]
[352955125,1739459455187,-584.21,0.00014196,2]
[352955127,1739459455197,-500.0,0.00014196,2]
[352955129,1739459455206,-500.0,0.00014196,2]
[352955131,1739459455216,-500.0,0.00014196,2]
[352955133,1739459455226,-501.42,0.00014196,2]
[352955135,1739459455236,-873.72,0.00014196,2]
[352955137,1739459455247,-591.41,0.00014196,2]
[352955139,1739459455263,-1008.31,0.00014196,2]
[352955141,1739459455273,-3047.78,0.00014196,2]
[352955143,1739459455283,-500.0,0.00014196,2]
[352955145,1739459455293,-5342.86,0.00014196,2]
[352955147,1739459455303,-1202.8,0.00014196,2]
[352955149,1739459455312,-500.0,0.00014196,2]
[352955151,1739459455323,-500.0,0.00014196,2]
[352955154,1739459455334,-2869.24,0.00014196,2]
[352955155,1739459455343,-500.0,0.00014196,2]
[352955157,1739459455354,-4097.76,0.00014196,2]
[352955159,1739459455363,-500.0,0.00014196,2]
[352955161,1739459455373,-994.65,0.00014196,2]
[352955163,1739459455383,-4927.84,0.00014196,2]
[352955165,1739459455394,-500.0,0.00014196,2]
[352955168,1739459455404,-818.69,0.00014196,2]
[352955169,1739459455414,-3880.27,0.00014196,2]
[352955172,1739459455425,-500.0,0.00014196,2]
[352955173,1739459455435,-500.0,0.00014196,2]
[352955175,1739459455444,-3515.0,0.00014196,2]
[352955177,1739459455454,-1158.53,0.00014196,2]
[352955179,1739459455464,-500.0,0.00014196,2]
[352955181,1739459455474,-5101.85,0.00014196,2]
[352955183,1739459455483,-500.0,0.00014196,2]
[352955185,1739459455493,-500.0,0.00014196,2]
[352955187,1739459455502,-500.0,0.00014196,2]
[352955189,1739459455512,-500.0,0.00014196,2]
[352955192,1739459455522,-992.65,0.00014196,2]
[352955193,1739459455531,-500.0,0.00014196,2]
[352955195,1739459455540,-500.0,0.00014196,2]
[352955197,1739459455549,-500.0,0.00014196,2]
[352955199,1739459455559,-500.0,0.00014197,2]
[352955201,1739459455569,-500.0,0.00014197,2]
[352955203,1739459455578,-1388.28,0.00014197,2]
[352955205,1739459455588,-1249.16,0.00014197,2]
[352955207,1739459455597,-1582.89,0.00014197,2]
[352955209,1739459455607,-500.0,0.00014197,2]
[352955211,1739459455616,-698.32,0.00014197,2]
[352955213,1739459455628,-1657.89,0.00014197,2]
[352955215,1739459455637,-500.0,0.00014197,2]
[352955216,1739459455647,-1221.69,0.00014197,2]
[352955217,1739459455656,-1861.82,0.00014197,2]
[352955218,1739459455666,-2288.62,0.00014197,2]
[352955219,1739459455677,-2465.5,0.00014197,2]
[352955220,1739459455687,-500.0,0.00014197,2]
[352955221,1739459455696,-520.22,0.00014197,2]
[352955222,1739459455705,-758.32,0.00014197,2]
[352955223,1739459455715,-1386.65,0.00014197,2]
[352955224,1739459455724,-1558.6,0.00014197,2]
[352955225,1739459455734,-712.26,0.00014197,2]
[352955226,1739459455743,-1494.4,0.00014197,2]
[352955227,1739459455752,-1030.3,0.00014197,2]
[352955228,1739459455761,-1729.26,0.00014197,2]
[352955230,1739459455771,-500.0,0.00014197,2]
[352955232,1739459455780,-817.2,0.00014197,2]
[352955234,1739459455790,-2820.27,0.00014197,2]
[352955236,1739459455799,-3395.79,0.00014197,2]
[352955238,1739459455809,-500.0,0.00014197,2]
[352955240,1739459455819,-855.93,0.00014197,2]
[352955242,1739459455828,-1565.58,0.00014197,2]
[352955244,1739459455838,-1360.11,0.00014197,2]
[352955246,1739459455848,-500.0,0.00014197,2]
[352955248,1739459455857,-500.0,0.00014197,2]
[352955250,1739459455867,-500.0,0.00014197,2]
[352955252,1739459455877,-500.0,0.00014197,2]
[352955254,1739459455887,-1362.87,0.00014197,2]
[352955256,1739459455896,-1441.17,0.00014197,2]
[352955258,1739459455906,-2392.73,0.00014197,2]
[352955260,1739459455916,-1636.13,0.00014197,2]
[352955262,1739459455925,-1302.9,0.00014197,2]
[352955264,1739459455935,-1786.01,0.00014197,2]
[352955266,1739459455944,-2338.88,0.00014197,2]
[352955268,1739459455955,-500.0,0.00014197,2]
[352955270,1739459455965,-1596.87,0.00014197,2]
[352955272,1739459455975,-500.0,0.00014197,2]
[352955274,1739459455985,-2458.31,0.00014197,2]
[352955276,1739459455994,-1048.11,0.00014197,2]
[352955278,1739459456004,-2522.17,0.00014197,2]
[352955280,1739459456014,-950.03608164,0.00014198,2]
[352955282,1739459456023,-525.68,0.00014198,2]
[352955284,1739459456034,-500.0,0.00014198,2]
[352955286,1739459456043,-500.0,0.00014198,2]
[352955288,1739459456052,-659.58,0.00014198,2]
[352955290,1739459456062,-500.0,0.00014198,2]
[352955292,1739459456071,-500.0,0.00014198,2]
[352955294,1739459456080,-292.34041005,0.00014198,2]
[352955296,1739459456090,-500.0,0.00014198,2]
[352955298,1739459456100,-796.57,0.00014198,2]
[352955300,1739459456110,-500.0,0.00014198,2]
[352955302,1739459456120,-500.0,0.00014198,2]
[352955304,1739459456130,-418.79701692,0.00014198,2]
[352955306,1739459456139,-2193.64,0.00014198,2]
[352955308,1739459456149,-2741.7,0.00014198,2]
[352955310,1739459456158,-1769.63,0.00014198,2]
[352955312,1739459456169,-1122.73,0.00014198,2]
[352955314,1739459456179,-749.39,0.00014198,2]
[352955316,1739459456188,-2983.94,0.00014198,2]
[352955318,1739459456197,-1838.54,0.00014198,2]
[352955320,1739459456207,-2908.75,0.00014198,2]
[352955322,1739459456216,-500.0,0.00014198,2]
[352955324,1739459456225,-2939.63,0.00014198,2]
[352955326,1739459456235,-1300.33,0.00014198,2]
[352955328,1739459456244,-1379.85,0.00014198,2]
[352955329,1739459456257,-774.24,0.00014198,2]
[352955331,1739459456267,-800.73,0.00014198,2]
[352955333,1739459456276,-800.73,0.00014198,2]
[352955335,1739459456286,-800.73,0.00014198,2]
[352955337,1739459456297,-800.73,0.00014198,2]
[352955339,1739459456307,-500.0,0.00014198,2]
[352955341,1739459456316,-689.5,0.00014198,2]
[352955343,1739459456326,-500.0,0.00014198,2]
[352955346,1739459456338,-1458.69,0.00014198,2]
[352955347,1739459456348,-500.0,0.00014198,2]
[352955349,1739459456358,-500.0,0.00014198,2]
[352955351,1739459456367,-1516.53,0.00014198,2]
[352955352,1739459456376,-1592.33,0.00014198,2]
[352955354,1739459456386,-500.0,0.00014198,2]
[352955356,1739459456396,-500.0,0.00014198,2]
[352955358,1739459456405,-151.0,0.00014198,2]
[352955359,1739459456415,-2178.21470617,0.00014198,2]
[352955361,1739459456424,-800.73,0.00014199,2]
[352955363,1739459456435,-800.73,0.00014199,2]
[352955365,1739459456444,-800.73,0.00014199,2]
[352955367,1739459456453,-800.73,0.00014199,2]
[352955369,1739459456463,-800.73,0.00014199,2]
[352955371,1739459456472,-800.73,0.00014199,2]
[352955373,1739459456481,-800.73,0.00014199,2]
[352955375,1739459456491,-800.73,0.00014199,2]
[352955377,1739459456500,-800.73,0.00014199,2]
[352955379,1739459456510,-800.73,0.00014199,2]
[352955381,1739459456519,-800.73,0.00014199,2]
[352955382,1739459456528,-800.73,0.00014199,2]
[352955384,1739459456538,-800.73,0.00014199,2]
[352955386,1739459456547,-800.73,0.00014199,2]
[352955388,1739459456556,-800.73,0.00014199,2]
[352955390,1739459456566,-800.73,0.00014199,2]
[352955392,1739459456576,-800.73,0.00014199,2]
[352955394,1739459456585,-800.73,0.00014199,2]
[352955413,1739459456770,-800.73,0.00014199,2]
[352955415,1739459456780,-800.79,0.00014199,2]
[352955417,1739459456790,-3966.51,0.00014199,2]
[352955419,1739459456800,-500.0,0.00014199,2]
[352955421,1739459456809,-500.0,0.00014199,2]
[352955423,1739459456818,-500.0,0.00014199,2]
[352955425,1739459456828,-432.69,0.00014199,2]
[352955427,1739459456837,-500.0,0.00014199,2]
[352955429,1739459456847,-500.0,0.00014199,2]
[352955431,1739459456857,-500.0,0.00014199,2]
[352955433,1739459456867,-374.41,0.00014199,2]
[352955435,1739459456876,-2202.98832303,0.000142,2]
[352955437,1739459456887,-1501868.84896271,0.000142,3]
[352955439,1739459456896,-904899.78627296,0.000142,5]
[352955477,1739459457283,-438.68061457,0.000142,5]
[352955480,1739459457295,-6480.84098243,0.000142,5]
[352955482,1739459457306,-27884.18988398,0.000142,5]
[352955483,1739459457317,-68898.682055,0.000142,5]
[352955484,1739459457328,-1127.98482213,0.000142,5]
[352955485,1739459457340,-7887.15844315,0.000142,5]
[352955486,1739459457351,-942.46523803,0.000142,5]
[352955487,1739459457362,-31581.78802,0.000142,5]
[352955488,1739459457374,-2821.7,0.000142,5]
[352955489,1739459457390,-257.95909052,0.000142,5]
[352955534,1739459457908,-972.14640884,0.000131,2]
[352955536,1739459457920,-2841.12359116,0.000131,2]
[352955539,1739459457930,-328.41312959,0.00013933,2]
[352955540,1739459457940,-566.02,0.00013998,2]
[352955542,1739459457950,-566.02,0.0001408,2]
[352955544,1739459457960,-566.02,0.00014163,2]
[352955546,1739459457970,-1273.55312229,0.000142,5]
[352955549,1739459457981,-1650.0,0.000142,5]
[352955551,1739459457992,-531.74050657,0.000142,5]
[352955553,1739459458003,-1192358.87503667,0.000142,5]
[352955555,1739459458015,-6128.10690623,0.000142,5]
[352955557,1739459458026,-5039.9994,0.000142,5]
[352955570,1739459458147,-2899.29837445,0.000142,5]
[352955584,1739459458276,-435.50221154,0.000142,5]
[352955586,1739459458287,-896.85471083,0.000142,5]
[352955588,1739459458298,-2846.52978326,0.000142,5]
[352955590,1739459458310,-433.5840325,0.000142,5]
[352955592,1739459458321,-1229.82403062,0.000142,5]
[352955650,1739459458950,-501.30791914,0.00013999,2]
[352955651,1739459458960,-474.32108086,0.00013999,2]
[352955652,1739459458971,-25.67891914,0.00013999,2]
[352955653,1739459458981,-500.0,0.00013999,2]
[352955654,1739459458990,-500.0,0.00014081,2]
[352955655,1739459458999,-386.15394254,0.00014164,2]
[352955656,1739459459010,-113.84605746,0.00014164,2]
[352955657,1739459459019,-1006.23121975,0.000142,5]
[352955673,1739459459236,-2197.34245995,0.000142,5]
[352955684,1739459459341,-398.28553,0.000142,5]
[352955686,1739459459353,-497.17427851,0.000142,5]
[352955688,1739459459365,-360.08234564,0.000142,5]
[352955691,1739459459376,-70442.08611544,0.000142,5]
[352955693,1739459459387,-257.12046455,0.000142,5]
[352955695,1739459459399,-48674.67297609,0.000142,5]
[352955697,1739459459410,-3253.2053238,0.000142,5]
[352955699,1739459459420,-405.70582779,0.000142,5]
[352955701,1739459459431,-376.87925389,0.000142,5]
[352955703,1739459459443,-3226.39799917,0.000142,5]
[352955773,1739459460141,5010.827,8.836e-05,2]
[352956794,1739459499208,700.0,0.00011564,2]
[352956795,1739459507009,600.0,0.00011564,2]
[352956796,1739459513950,500.0,0.00010468,2]
[352956799,1739459534491,555.1867,8.973e-05,2]
[352956800,1739459552708,252209.9408,8.836e-05,2]
[352956825,1739459642438,700.0,0.00010468,2]
[352956826,1739459644058,700.0,0.00011838,2]
[352956828,1739459652472,500.0,0.00010468,2]
[352956829,1739459654062,500.0,0.00011838,2]
[352956830,1739459659504,700.0,0.00010468,2]
[352956832,1739459661161,700.0,0.00011838,2]
[352956834,1739459694776,1856.33,0.00010926,2]
[352956844,1739459845387,155.19,0.00010137,2]
[352956846,1739460247782,9707.0,0.000136,30]
[352956854,1739460330191,16154.19169178,0.00011,2]
[352956855,1739460336486,1467.82666714,8e-05,2]
[352956856,1739460366873,1178.37621637,8e-05,2]
[352956859,1739460370203,420.0,0.0002,120]
[352956862,1739460427145,-460.37667537,0.00012524,2]
[352956863,1739460427169,-1500.0,0.00012575,2]
[352956864,1739460427192,-379.37,0.00012624,2]
[352956865,1739460427215,-500.0,0.00012624,2]
[352956866,1739460427238,-4487.66,0.00012624,2]
[352956867,1739460427266,-166.5,0.00012629,2]
[352956868,1739460427290,-1419.05383426,0.00012633,2]
[352956870,1739460445123,-591.53520327,0.00012633,2]
[352956871,1739460453287,-1418.68,0.00012612,2]
[352956872,1739460453312,-5259.28333391,0.00012633,2]
[352956873,1739460453342,-409.60757456,0.00012633,2]
[352956874,1739460459924,1500.0,8.973e-05,2]
[352956875,1739460479479,7321.62378363,0.0001,2]
[352956876,1739460479502,10000.0,0.0001,2]
[352956877,1739460479524,10000.0,0.0001,2]
[352956878,1739460479546,10000.0,0.0001,2]
[352956879,1739460479572,10000.0,0.0001,2]
[352956880,1739460479594,10000.0,0.0001,2]
[352956881,1739460479618,9543.16213278,0.0001,2]
[352956882,1739460485415,456.83786722,8.851e-05,2]
[352956883,1739460485436,43.16213278,8.851e-05,2]
[352956884,1739460485728,782.5761,8.836e-05,2]
[352956888,1739460499962,4627.1419,8.836e-05,2]
[352956894,1739460526701,865.5267,8.851e-05,2]
[352956897,1739460546121,-1607.82,0.00012579,2]
[352956898,1739460546144,-16220.520054,0.00012633,2]
[352956899,1739460546167,-150.0,0.00012633,2]
[352956900,1739460546191,-1169.62,0.00012633,2]
[352956901,1739460546213,-1000.0,0.00012662,2]
[352956902,1739460546235,-150.0,0.00012678,2]
[352956903,1739460546255,-250.0,0.00012695,2]
[352956904,1739460546276,-165.09,0.00012765,2]
[352956905,1739460546298,-150.0,0.00012773,2]
[352956906,1739460546319,-150.0,0.00012773,2]
[352956907,1739460546340,-150.0,0.00012773,2]
[352956908,1739460546361,-200.0,0.00012791,2]
[352956909,1739460546382,-7456.8,0.00012815,2]
[352956910,1739460546403,-1046.59,0.00012822,2]
[352956911,1739460546422,-150.0,0.00012844,2]
[352956912,1739460546443,-2751.0,0.00012856,2]
[352956913,1739460546464,-150.0,0.00012881,2]
[352956914,1739460546485,-1305.742646,0.00012882,2]
[352956915,1739460547132,-11639.59948329,0.00012882,2]
[352956916,1739460547156,-550.0,0.00013,2]
[352956917,1739460547191,-200.0,0.00013044,2]
[352956918,1739460547217,-300.0,0.000131,2]
[352956919,1739460547243,-878.71,0.000131,2]
[352956920,1739460547267,-150.66,0.000131,2]
[352956921,1739460547290,-395.12,0.000131,2]
[352956922,1739460547314,-150.0,0.000131,2]
[352956923,1739460547340,-500.0,0.000131,4]
[352956924,1739460547366,-1856.33,0.0001319,2]
[352956925,1739460547390,-1971.22,0.000132,2]
[352956926,1739460547413,-150.0,0.000132,2]
[352956927,1739460547445,-300.0,0.000132,2]
[352956928,1739460547471,-438.93,0.000132,2]
[352956929,1739460547495,-150.0,0.000132,2]
[352956930,1739460547522,-1100.0,0.000132,4]
[352956931,1739460547546,-13192.7626159,0.00013208,2]
[352956932,1739460547570,-700.0,0.00013208,2]
[352956933,1739460547599,-700.0,0.00013208,2]
[352956934,1739460547625,-965.78,0.00013233,2]
[352956935,1739460547649,-511.3,0.00013233,2]
[352956936,1739460547676,-639.93,0.00013233,2]
[352956937,1739460547700,-775.49,0.00013233,2]
[352956938,1739460547724,-426.29702751,0.000133,2]
[352956939,1739460547752,-1600.0,0.000133,4]
[352956940,1739460547776,-226.45357745,0.00013314,2]
[352956941,1739460547800,-247.8,0.0001337,2]
[352956942,1739460547824,-150.0,0.0001337,2]
[352956943,1739460547847,-150.0,0.0001337,2]
[352956944,1739460547875,-150.0,0.0001337,2]
[352956945,1739460547897,-150.0,0.0001337,2]
[352956946,1739460547920,-150.0,0.00013378,2]
[352956947,1739460547943,-150.0,0.00013378,2]
[352956948,1739460547965,-150.0,0.00013378,2]
[352956949,1739460547988,-150.0,0.00013378,2]
[352956950,1739460548010,-438.93,0.00013378,2]
[352956951,1739460548037,-150.0,0.00013378,2]
[352956952,1739460548063,-300.0,0.00013378,2]
[352956953,1739460548086,-630.02,0.00013378,2]
[352956954,1739460548113,-150.0,0.00013378,2]
[352956955,1739460548138,-986.09,0.00013378,2]
[352956956,1739460548163,-2200.0,0.000134,4]
[352956957,1739460548188,-150.0,0.00013425,2]
[352956958,1739460548213,-150.0,0.00013425,2]
[352956959,1739460548252,-150.0,0.00013425,2]
[352956960,1739460548291,-150.0,0.00013425,2]
[352956961,1739460548332,-150.0,0.00013425,2]
[352956962,1739460548371,-150.0,0.00013425,2]
[352956963,1739460548414,-150.0,0.00013425,2]
[352956964,1739460548455,-916.80760166,0.00013441,2]
[352956965,1739460548496,-403.4,0.00013462,2]
[352956966,1739460548535,-150.0,0.00013462,2]
[352956967,1739460548574,-150.0,0.00013462,2]
[352956968,1739460548614,-150.0,0.00013462,2]
[352956969,1739460548654,-150.0,0.00013462,2]
[352956970,1739460548696,-150.0,0.00013462,2]
[352956971,1739460548735,-150.0,0.00013462,2]
[352956972,1739460548774,-150.0,0.00013462,2]
[352956973,1739460554364,150.0,0.000131,2]
[352956974,1739460554431,438.93,0.00013123,2]
[352956975,1739460554602,150.0,0.000131,2]
[352956976,1739460554797,303.28,0.00013123,2]
[352956977,1739460559567,1007.52,0.00013044,2]
[352956978,1739460569098,-2700.0,0.000135,4]
[352956979,1739460569126,-13492.61675316,0.00013522,2]
[352956980,1739460569149,-1000.0,0.00013553,2]
[352956981,1739460569172,-430.0,0.000136,2]
[352956982,1739460569199,-500.0,0.000136,4]
[352956983,1739460571098,3362.7289,8.836e-05,2]
[352956984,1739460595540,516.1618,8.836e-05,2]
[352956985,1739460600197,600.0,0.00011564,2]
[352956986,1739460601651,600.0,0.00012934,2]
[352956987,1739460601847,600.0,0.00011564,2]
[352956988,1739460601958,461.72,0.00012977,2]
[352956989,1739460603519,600.0,0.00012934,2]
[352956990,1739460606033,200.0,0.000126,2]
[352956993,1739460632468,-300.0,0.00013698,2]
[352956995,1739460632479,-157.0,0.00013699,2]
[352956997,1739460632488,-500.0,0.00013699,2]
[352956998,1739460632501,-2808.78,0.00013699,2]
[352956999,1739460632510,-150.0,0.00013699,2]
[352957001,1739460632522,-1401.82,0.00013699,2]
[352957004,1739460632813,-2414.175,0.00013699,2]
[352957005,1739460632824,-3762.92495287,0.00013699,2]
[352957007,1739460632834,-500.0,0.000137,5]
[352957009,1739460632843,-407.84948769,0.00013765,2]
[352957010,1739460632852,-500.0,0.000138,5]
[352957011,1739460632862,-165.09,0.00013829,2]
[352957012,1739460632871,-6980.54822297,0.00013896,2]
[352957013,1739460632880,-183.41967618,0.00013896,2]
[352957014,1739460632890,-150.0,0.00013896,2]
[352957015,1739460632900,-500.0,0.000139,5]
[352957016,1739460632909,-1969.58,0.00013918,2]
[352957017,1739460632919,-150.0,0.00013918,2]
[352957018,1739460632928,-6980.54822293,0.00013919,2]
[352957019,1739460632943,-150.0,0.00013929,2]
[352957020,1739460632953,-150.0,0.00013935,2]
[352957021,1739460632962,-150.0,0.0001394,2]
[352957022,1739460632972,-6980.54822293,0.00013941,2]
[352957023,1739460632982,-150.0,0.00013947,2]
[352957024,1739460632992,-6980.54822293,0.00013964,2]
[352957025,1739460633001,-150.0,0.00013966,2]
[352957026,1739460633011,-150.0,0.0001397,2]
[352957027,1739460633021,-172.52552432,0.0001398,2]
[352957028,1739460633031,-150.0,0.00013986,2]
[352957029,1739460633040,-6980.54822293,0.00013987,2]
[352957030,1739460633051,-1232.39,0.00013995,2]
[352957031,1739460633237,-4358.17,0.00013995,2]
[352957032,1739460633252,-2769.22,0.00013995,2]
[352957033,1739460633262,-3713.63,0.00013995,2]
[352957034,1739460633272,-2562.25,0.00013995,2]
[352957035,1739460633283,-2549.64,0.00013995,2]
[352957036,1739460633293,-1922.23,0.00013995,2]
[352957037,1739460633304,-3331.28,0.00013995,2]
[352957038,1739460633316,-2505.23,0.00013995,2]
[352957039,1739460633326,-4701.32,0.00013995,2]
[352957040,1739460633336,-500.0,0.00013995,2]
[352957041,1739460633346,-3467.39,0.00013995,2]
[352957042,1739460633356,-2098.2,0.00013995,2]
[352957043,1739460633366,-3923.94,0.00013995,2]
[352957044,1739460633376,-500.0,0.00013995,2]
[352957045,1739460633386,-5330.73,0.00013995,2]
[352957046,1739460633396,-1427.58,0.00013995,2]
[352957047,1739460633406,-3262.68,0.00013995,2]
[352957048,1739460633416,-3013.66,0.00013995,2]
[352957049,1739460633427,-500.0,0.00013995,2]
[352957050,1739460633441,-533.92,0.00013995,2]
[352957051,1739460633451,-500.0,0.00013995,2]